[Event "*** SCC Grand Prix: Titled Tuesday Blitz"]
[Site "Chess.com"]
[Date "2020.10.06"]
[Round "7"]
[White "Lupul_Cenusiu"]
[Black "Fischerev7"]
[Result "1-0"]
[WhiteElo "2521"]
[BlackElo "2352"]
[TimeControl "180+1"]
[EndTime "11:18:02 PDT"]
[Termination "Lupul_Cenusiu won by resignation"]

1. d4 {[%clk 0:03:00.9]} 1... Nf6 {[%clk 0:03:00.1]} 2. Bg5 {[%clk 0:02:58.8]}
2... d5 {[%clk 0:02:59.7]} 3. Bxf6 {[%clk 0:02:58.1]} 3... gxf6 {[%clk
0:03:00.6]} 4. Nf3 {[%clk 0:02:57.4]} 4... c5 {[%clk 0:02:56.5]} 5. e3 {[%clk
0:02:55.8]} 5... Nc6 {[%clk 0:02:55.9]} 6. c4 {[%clk 0:02:56]} 6... cxd4 {[%clk
0:02:52.6]} 7. exd4 {[%clk 0:02:55.8]} 7... dxc4 {[%clk 0:02:51.2]} 8. Bxc4
{[%clk 0:02:53.4]} 8... e6 {[%clk 0:02:50.6]} 9. Nc3 {[%clk 0:02:51.4]} 9... Rg8
{[%clk 0:02:31.2]} 10. O-O {[%clk 0:02:48.5]} 10... Be7 {[%clk 0:02:20.1]} 11.
Re1 {[%clk 0:02:45.5]} 11... Kf8 {[%clk 0:01:43.5]} 12. a3 {[%clk 0:02:39.6]}
12... b6 {[%clk 0:01:42.1]} 13. d5 {[%clk 0:02:37.1]} 13... Na5 {[%clk
0:01:34.3]} 14. Ba2 {[%clk 0:02:35.9]} 14... e5 {[%clk 0:01:30.4]} 15. Ne4
{[%clk 0:02:33.8]} 15... Bd6 {[%clk 0:01:25]} 16. Nxd6 {[%clk 0:02:27.9]} 16...
Qxd6 {[%clk 0:01:23.5]} 17. b4 {[%clk 0:02:27.7]} 17... Nb7 {[%clk 0:01:21.8]}
18. Nd2 {[%clk 0:02:27.7]} 18... Bh3 {[%clk 0:01:17.6]} 19. g3 {[%clk
0:02:27.3]} 19... Rg6 {[%clk 0:01:05.1]} 20. Qh5 {[%clk 0:02:21.4]} 20... Qd7
{[%clk 0:00:53.8]} 21. Qxh7 {[%clk 0:02:16.8]} 21... Ke7 {[%clk 0:00:53.8]} 22.
Ne4 {[%clk 0:02:02.7]} 22... Bf5 {[%clk 0:00:45.3]} 23. Qh5 {[%clk 0:01:38.6]}
23... Bg4 {[%clk 0:00:33.4]} 24. Qh4 {[%clk 0:01:33.9]} 24... Nd6 {[%clk
0:00:33.3]} 25. Nxd6 {[%clk 0:01:30.8]} 25... Qxd6 {[%clk 0:00:34.2]} 26. Rac1
{[%clk 0:01:30.4]} 26... Rc8 {[%clk 0:00:17]} 27. Rxc8 {[%clk 0:01:26.4]} 27...
Bxc8 {[%clk 0:00:17.9]} 28. f4 {[%clk 0:01:26.1]} 28... Rg4 {[%clk 0:00:09.3]}
29. Qh8 {[%clk 0:01:24.9]} 29... Qc7 {[%clk 0:00:07.3]} 30. fxe5 {[%clk
0:01:23.8]} 30... f5 {[%clk 0:00:07.1]} 31. d6+ {[%clk 0:01:22.5]} 1-0

[Event "*** SCC Grand Prix: Titled Tuesday Blitz"]
[Site "Chess.com"]
[Date "2020.10.06"]
[Round "7"]
[White "akanga001"]
[Black "glebus008"]
[Result "1/2-1/2"]
[WhiteElo "1878"]
[BlackElo "2226"]
[TimeControl "180+1"]
[EndTime "11:18:09 PDT"]
[Termination "Game drawn by repetition"]

1. d4 {[%clk 0:03:00.9]} 1... d5 {[%clk 0:02:57.8]} 2. c4 {[%clk 0:03:00.3]}
2... e6 {[%clk 0:02:57.3]} 3. Nc3 {[%clk 0:02:58.9]} 3... c6 {[%clk 0:02:56.9]}
4. e3 {[%clk 0:02:58]} 4... Bd6 {[%clk 0:02:55.6]} 5. Nf3 {[%clk 0:02:57.9]}
5... f5 {[%clk 0:02:54.4]} 6. Qc2 {[%clk 0:02:53.7]} 6... Nf6 {[%clk 0:02:53.7]}
7. Be2 {[%clk 0:02:51.8]} 7... Nbd7 {[%clk 0:02:52.6]} 8. O-O {[%clk 0:02:49.7]}
8... O-O {[%clk 0:02:51.7]} 9. b3 {[%clk 0:02:45.6]} 9... Ne4 {[%clk 0:02:50.6]}
10. a4 {[%clk 0:02:40.7]} 10... Rf6 {[%clk 0:02:46.4]} 11. Ba3 {[%clk
0:02:39.6]} 11... Bc7 {[%clk 0:02:45.7]} 12. Bb2 {[%clk 0:02:32.6]} 12... Rh6
{[%clk 0:02:43.3]} 13. Nxe4 {[%clk 0:02:27.6]} 13... fxe4 {[%clk 0:02:42.5]} 14.
Ne5 {[%clk 0:02:27.1]} 14... Nxe5 {[%clk 0:02:35.7]} 15. dxe5 {[%clk 0:02:25.7]}
15... Qg5 {[%clk 0:02:31.1]} 16. f4 {[%clk 0:02:21.1]} 16... exf3 {[%clk
0:02:29.2]} 17. Rxf3 {[%clk 0:02:17.3]} 17... Bxe5 {[%clk 0:02:23.1]} 18. Raf1
{[%clk 0:02:14.1]} 18... Bxh2+ {[%clk 0:02:19.9]} 19. Kf2 {[%clk 0:02:11.4]}
19... Bd7 {[%clk 0:02:07.6]} 20. Ke1 {[%clk 0:02:09.5]} 20... Qxg2 {[%clk
0:01:52.8]} 21. Qc3 {[%clk 0:01:57.1]} 21... Rg6 {[%clk 0:01:32.1]} 22. Rf7
{[%clk 0:01:49.2]} 22... Rd8 {[%clk 0:00:56.3]} 23. Qb4 {[%clk 0:01:43.4]} 23...
Qg3+ {[%clk 0:00:35.2]} 24. Kd1 {[%clk 0:01:42.1]} 24... Qd6 {[%clk 0:00:34.5]}
25. Qxb7 {[%clk 0:01:35.4]} 25... Be5 {[%clk 0:00:25.7]} 26. Bxe5 {[%clk
0:01:30.7]} 26... Qxe5 {[%clk 0:00:26.6]} 27. Rxd7 {[%clk 0:01:29.1]} 27... Qa1+
{[%clk 0:00:25.5]} 28. Kd2 {[%clk 0:01:26]} 28... Qb2+ {[%clk 0:00:25]} 29. Ke1
{[%clk 0:01:25.5]} 29... Qc1+ {[%clk 0:00:21.1]} 30. Bd1 {[%clk 0:01:22]} 30...
Qxe3+ {[%clk 0:00:20.5]} 31. Be2 {[%clk 0:01:21.9]} 31... Qc1+ {[%clk
0:00:18.7]} 32. Bd1 {[%clk 0:01:21.8]} 32... Qe3+ {[%clk 0:00:18.2]} 33. Be2
{[%clk 0:01:21.7]} 33... Qc1+ {[%clk 0:00:14.1]} 34. Bd1 {[%clk 0:01:21.1]}
34... Qe3+ {[%clk 0:00:13.7]} 1/2-1/2

[Event "*** SCC Grand Prix: Titled Tuesday Blitz"]
[Site "Chess.com"]
[Date "2020.10.06"]
[Round "7"]
[White "Chessdreamer2020"]
[Black "Indianlad"]
[Result "0-1"]
[WhiteElo "2473"]
[BlackElo "2925"]
[TimeControl "180+1"]
[EndTime "11:18:15 PDT"]
[Termination "Indianlad won by resignation"]

1. e4 {[%clk 0:03:00.9]} 1... c6 {[%clk 0:02:59.1]} 2. Nc3 {[%clk 0:02:58.3]}
2... d5 {[%clk 0:03:00]} 3. Nf3 {[%clk 0:02:58.7]} 3... Bg4 {[%clk 0:03:00]} 4.
h3 {[%clk 0:02:58.8]} 4... Bxf3 {[%clk 0:03:00.4]} 5. Qxf3 {[%clk 0:02:58]} 5...
e6 {[%clk 0:03:01.2]} 6. d3 {[%clk 0:02:58.3]} 6... Bc5 {[%clk 0:03:01]} 7. g3
{[%clk 0:02:57.9]} 7... Ne7 {[%clk 0:03:01.1]} 8. Bg2 {[%clk 0:02:58.4]} 8...
Nd7 {[%clk 0:03:01.4]} 9. O-O {[%clk 0:02:58.8]} 9... d4 {[%clk 0:03:01]} 10.
Nb1 {[%clk 0:02:55.1]} 10... e5 {[%clk 0:02:59.9]} 11. Qe2 {[%clk 0:02:54.3]}
11... Bd6 {[%clk 0:02:59.7]} 12. f4 {[%clk 0:02:54.2]} 12... c5 {[%clk
0:03:00.2]} 13. Nd2 {[%clk 0:02:52.5]} 13... Nc6 {[%clk 0:02:59.8]} 14. Nc4
{[%clk 0:02:51]} 14... Bc7 {[%clk 0:03:00.3]} 15. a4 {[%clk 0:02:44.2]} 15... a6
{[%clk 0:02:57.5]} 16. Qg4 {[%clk 0:02:20.8]} 16... g6 {[%clk 0:02:56.1]} 17. f5
{[%clk 0:02:19.7]} 17... Qe7 {[%clk 0:02:51.3]} 18. Bg5 {[%clk 0:02:08.9]} 18...
f6 {[%clk 0:02:50.2]} 19. Bd2 {[%clk 0:02:08.7]} 19... O-O-O {[%clk 0:02:33.3]}
20. Qe2 {[%clk 0:01:54.5]} 20... Rdg8 {[%clk 0:02:29.7]} 21. Kh2 {[%clk
0:01:54.6]} 21... g5 {[%clk 0:02:12.8]} 22. Bf3 {[%clk 0:01:50.9]} 22... Nb6
{[%clk 0:01:55.4]} 23. Nxb6+ {[%clk 0:01:48.8]} 23... Bxb6 {[%clk 0:01:56.3]}
24. Bh5 {[%clk 0:01:48.8]} 24... Kb8 {[%clk 0:01:55]} 25. Rab1 {[%clk
0:01:46.7]} 25... Ka7 {[%clk 0:01:54.1]} 26. Qe1 {[%clk 0:01:39.5]} 26... Rc8
{[%clk 0:01:53]} 27. Rf2 {[%clk 0:01:38]} 27... Rhd8 {[%clk 0:01:31.9]} 28. b3
{[%clk 0:01:31]} 28... Qc7 {[%clk 0:01:30.3]} 29. Rc1 {[%clk 0:01:22.8]} 29...
Ba5 {[%clk 0:01:30.5]} 30. Bxa5 {[%clk 0:01:21.6]} 30... Nxa5 {[%clk 0:01:31.4]}
31. Ra1 {[%clk 0:01:19.7]} 31... Nc6 {[%clk 0:01:27.8]} 32. Rg2 {[%clk
0:01:17.3]} 32... Rg8 {[%clk 0:01:26]} 33. Qd1 {[%clk 0:01:13]} 33... Ra8 {[%clk
0:01:26.1]} 34. Rg1 {[%clk 0:01:12]} 34... Kb8 {[%clk 0:01:26.2]} 35. Qe2 {[%clk
0:01:10.8]} 35... Kc8 {[%clk 0:01:26.5]} 36. Ra2 {[%clk 0:01:11]} 36... Kd8
{[%clk 0:01:26.6]} 37. Rga1 {[%clk 0:01:11.4]} 37... Ke7 {[%clk 0:01:26.9]} 38.
Qd1 {[%clk 0:01:10.6]} 38... Kf8 {[%clk 0:01:27.1]} 39. Qe2 {[%clk 0:01:09.5]}
39... Nb4 {[%clk 0:01:27.4]} 40. Qd1 {[%clk 0:01:07.8]} 40... Nxa2 {[%clk
0:01:26.6]} 41. Rxa2 {[%clk 0:01:07.2]} 41... Kg7 {[%clk 0:01:27.2]} 42. Qd2
{[%clk 0:01:05.6]} 42... b5 {[%clk 0:01:26]} 43. Be2 {[%clk 0:01:05.1]} 43...
Kh8 {[%clk 0:01:23.3]} 44. Bd1 {[%clk 0:01:04.8]} 44... Qb7 {[%clk 0:01:21.6]}
45. Qe2 {[%clk 0:01:03.2]} 45... Rgc8 {[%clk 0:01:21.7]} 46. Qh5 {[%clk
0:01:03]} 46... c4 {[%clk 0:01:20.6]} 47. bxc4 {[%clk 0:01:00.8]} 47... bxc4
{[%clk 0:01:20.7]} 48. Qh6 {[%clk 0:00:58]} 48... Qg7 {[%clk 0:01:20.6]} 49. Qh5
{[%clk 0:00:52.1]} 49... c3 {[%clk 0:01:18.4]} 0-1

[Event "*** SCC Grand Prix: Titled Tuesday Blitz"]
[Site "Chess.com"]
[Date "2020.10.06"]
[Round "7"]
[White "szefru"]
[Black "Piotrek1979"]
[Result "0-1"]
[WhiteElo "2200"]
[BlackElo "2479"]
[TimeControl "180+1"]
[EndTime "11:18:16 PDT"]
[Termination "Piotrek1979 won by resignation"]

1. e4 {[%clk 0:03:00.1]} 1... Nc6 {[%clk 0:02:58.1]} 2. d4 {[%clk 0:02:58.9]}
2... d5 {[%clk 0:02:54.9]} 3. e5 {[%clk 0:02:57.9]} 3... Bf5 {[%clk 0:02:47.5]}
4. c3 {[%clk 0:02:53.4]} 4... Qd7 {[%clk 0:02:46.7]} 5. Bd3 {[%clk 0:02:50.5]}
5... h5 {[%clk 0:02:41.6]} 6. Nf3 {[%clk 0:02:41.7]} 6... h4 {[%clk 0:02:36.5]}
7. h3 {[%clk 0:02:08.6]} 7... f6 {[%clk 0:02:36.3]} 8. Na3 {[%clk 0:01:42.9]}
8... g5 {[%clk 0:02:32.4]} 9. Qc2 {[%clk 0:01:37.1]} 9... Nh6 {[%clk 0:02:29.1]}
10. Bxf5 {[%clk 0:01:35.3]} 10... Nxf5 {[%clk 0:02:23.2]} 11. O-O {[%clk
0:01:27.5]} 11... O-O-O {[%clk 0:02:14.7]} 12. b4 {[%clk 0:01:24.3]} 12... Bg7
{[%clk 0:01:46]} 13. b5 {[%clk 0:01:13.2]} 13... Na5 {[%clk 0:01:44.2]} 14. Rb1
{[%clk 0:01:02.5]} 14... Rdg8 {[%clk 0:01:14.4]} 15. Qa4 {[%clk 0:01:00.5]}
15... b6 {[%clk 0:01:13.7]} 16. Rd1 {[%clk 0:00:43.7]} 16... Bf8 {[%clk
0:01:11.8]} 17. c4 {[%clk 0:00:40]} 17... g4 {[%clk 0:01:10.8]} 18. hxg4 {[%clk
0:00:37.7]} 18... Rxg4 {[%clk 0:01:11.4]} 19. cxd5 {[%clk 0:00:37.1]} 19... Qxd5
{[%clk 0:01:04.9]} 20. Kf1 {[%clk 0:00:30.2]} 20... h3 {[%clk 0:00:59.7]} 21.
Ng1 {[%clk 0:00:12.7]} 21... hxg2+ {[%clk 0:00:54.7]} 22. Ke1 {[%clk 0:00:13]}
22... Rh1 {[%clk 0:00:50.8]} 23. Kd2 {[%clk 0:00:11.9]} 23... Rxd4+ {[%clk
0:00:49.8]} 0-1

[Event "*** SCC Grand Prix: Titled Tuesday Blitz"]
[Site "Chess.com"]
[Date "2020.10.06"]
[Round "7"]
[White "Khnykin_Nikolay"]
[Black "ozates"]
[Result "0-1"]
[WhiteElo "2042"]
[BlackElo "2366"]
[TimeControl "180+1"]
[EndTime "11:18:17 PDT"]
[Termination "ozates won on time"]

1. e4 {[%clk 0:03:00.9]} 1... c5 {[%clk 0:02:57.3]} 2. d4 {[%clk 0:02:59]} 2...
cxd4 {[%clk 0:02:55]} 3. c3 {[%clk 0:02:58.2]} 3... d3 {[%clk 0:02:55.6]} 4.
Bxd3 {[%clk 0:02:55.3]} 4... g6 {[%clk 0:02:55.9]} 5. c4 {[%clk 0:02:54.9]} 5...
Bg7 {[%clk 0:02:56.2]} 6. Nc3 {[%clk 0:02:55.1]} 6... Nc6 {[%clk 0:02:57.1]} 7.
Nf3 {[%clk 0:02:55.3]} 7... d6 {[%clk 0:02:58]} 8. O-O {[%clk 0:02:55.2]} 8...
Nf6 {[%clk 0:02:58.6]} 9. Bf4 {[%clk 0:02:55]} 9... O-O {[%clk 0:02:59]} 10. a3
{[%clk 0:02:55]} 10... Ng4 {[%clk 0:02:58.5]} 11. h3 {[%clk 0:02:50.1]} 11...
Nge5 {[%clk 0:02:58.8]} 12. Nxe5 {[%clk 0:02:47.2]} 12... dxe5 {[%clk
0:02:54.9]} 13. Be3 {[%clk 0:02:44.9]} 13... Nd4 {[%clk 0:02:51.5]} 14. Bxd4
{[%clk 0:02:34.1]} 14... exd4 {[%clk 0:02:51.4]} 15. Nd5 {[%clk 0:02:33.8]}
15... e6 {[%clk 0:02:46.2]} 16. Nb4 {[%clk 0:02:28.6]} 16... a5 {[%clk
0:02:45.4]} 17. Nc2 {[%clk 0:02:28.1]} 17... b6 {[%clk 0:02:45.2]} 18. f4 {[%clk
0:02:27.5]} 18... f5 {[%clk 0:02:43.8]} 19. Qf3 {[%clk 0:02:00.9]} 19... Bb7
{[%clk 0:02:43.1]} 20. Rfe1 {[%clk 0:02:00.2]} 20... g5 {[%clk 0:02:38.6]} 21.
Qh5 {[%clk 0:01:24.5]} 21... gxf4 {[%clk 0:02:23.8]} 22. exf5 {[%clk 0:01:20.5]}
22... e5 {[%clk 0:02:18.8]} 23. f6 {[%clk 0:01:17.3]} 23... Rxf6 {[%clk
0:02:17]} 24. Bxh7+ {[%clk 0:01:16.2]} 24... Kh8 {[%clk 0:02:13.7]} 25. Bg6+
{[%clk 0:01:03.8]} 25... Kg8 {[%clk 0:02:12.7]} 26. Rxe5 {[%clk 0:00:43.9]}
26... d3 {[%clk 0:01:51]} 27. Re8+ {[%clk 0:00:35.2]} 27... Qxe8 {[%clk
0:01:50.8]} 28. Bxe8 {[%clk 0:00:32.5]} 28... dxc2 {[%clk 0:01:50.8]} 29. Bg6
{[%clk 0:00:18.8]} 29... f3 {[%clk 0:01:41.9]} 30. gxf3 {[%clk 0:00:10.7]} 30...
Bxf3 {[%clk 0:01:36.7]} 31. Qg5 {[%clk 0:00:08.2]} 31... Rd8 {[%clk 0:01:24.4]}
32. Bxc2 {[%clk 0:00:05.3]} 32... Rd2 {[%clk 0:01:23.4]} 33. Bb3 {[%clk
0:00:02.6]} 33... Rxb2 {[%clk 0:01:18.4]} 0-1

[Event "*** SCC Grand Prix: Titled Tuesday Blitz"]
[Site "Chess.com"]
[Date "2020.10.06"]
[Round "7"]
[White "FloMasterAAK"]
[Black "googlegoom"]
[Result "1-0"]
[WhiteElo "2557"]
[BlackElo "2415"]
[TimeControl "180+1"]
[EndTime "11:18:19 PDT"]
[Termination "FloMasterAAK won on time"]

1. e4 {[%clk 0:03:00.9]} 1... c5 {[%clk 0:02:54.7]} 2. Nf3 {[%clk 0:03:00.8]}
2... Nc6 {[%clk 0:02:54.4]} 3. Be2 {[%clk 0:03:00.5]} 3... e6 {[%clk 0:02:53.9]}
4. O-O {[%clk 0:03:00.3]} 4... d5 {[%clk 0:02:54.4]} 5. exd5 {[%clk 0:03:00.4]}
5... Qxd5 {[%clk 0:02:54.3]} 6. d4 {[%clk 0:03:01.3]} 6... Nf6 {[%clk
0:02:53.5]} 7. Nc3 {[%clk 0:03:00.3]} 7... Qd8 {[%clk 0:02:54]} 8. Bb5 {[%clk
0:02:52.1]} 8... Bd7 {[%clk 0:02:47.1]} 9. d5 {[%clk 0:02:31.4]} 9... exd5
{[%clk 0:02:41.7]} 10. Bg5 {[%clk 0:02:30.6]} 10... Be7 {[%clk 0:02:26.8]} 11.
Re1 {[%clk 0:02:18.2]} 11... O-O {[%clk 0:02:20.7]} 12. Nxd5 {[%clk 0:01:58]}
12... Nxd5 {[%clk 0:02:11.5]} 13. Qxd5 {[%clk 0:01:58.9]} 13... Bxg5 {[%clk
0:02:02.6]} 14. Nxg5 {[%clk 0:01:58.1]} 14... h6 {[%clk 0:01:34.1]} 15. Ne4
{[%clk 0:01:50.8]} 15... Nb4 {[%clk 0:01:33.7]} 16. Qxc5 {[%clk 0:01:48.6]}
16... Bxb5 {[%clk 0:01:33.4]} 17. Qxb4 {[%clk 0:01:47.1]} 17... Bc6 {[%clk
0:01:33.7]} 18. Nd6 {[%clk 0:01:44]} 18... Qg5 {[%clk 0:01:29.7]} 19. Ne4 {[%clk
0:01:17.8]} 19... Qf4 {[%clk 0:01:13.2]} 20. Re3 {[%clk 0:01:11.8]} 20... Rad8
{[%clk 0:00:53.6]} 21. Rae1 {[%clk 0:01:07.7]} 21... Qc7 {[%clk 0:00:37.6]} 22.
Qc3 {[%clk 0:01:00]} 22... f5 {[%clk 0:00:25.7]} 23. Nc5 {[%clk 0:00:57.1]}
23... Bd5 {[%clk 0:00:11.1]} 24. Re7 {[%clk 0:00:54.2]} 1-0

[Event "*** SCC Grand Prix: Titled Tuesday Blitz"]
[Site "Chess.com"]
[Date "2020.10.06"]
[Round "7"]
[White "Duhless"]
[Black "abhidabhi"]
[Result "1-0"]
[WhiteElo "2963"]
[BlackElo "2779"]
[TimeControl "180+1"]
[EndTime "11:18:20 PDT"]
[Termination "Duhless won by resignation"]

1. d4 {[%clk 0:03:00.9]} 1... Nf6 {[%clk 0:02:59.8]} 2. Nf3 {[%clk 0:03:01.8]}
2... d6 {[%clk 0:02:58]} 3. g3 {[%clk 0:02:59.8]} 3... g6 {[%clk 0:02:52.1]} 4.
b3 {[%clk 0:02:59.6]} 4... Bg7 {[%clk 0:02:52.1]} 5. Bb2 {[%clk 0:03:00.5]} 5...
O-O {[%clk 0:02:46.1]} 6. Bg2 {[%clk 0:03:00.6]} 6... c5 {[%clk 0:02:46.3]} 7.
c4 {[%clk 0:02:58.7]} 7... Qa5+ {[%clk 0:02:28.2]} 8. Bc3 {[%clk 0:02:57.4]}
8... Qc7 {[%clk 0:02:26.4]} 9. Nbd2 {[%clk 0:02:52.6]} 9... Bf5 {[%clk
0:02:19.5]} 10. O-O {[%clk 0:02:50.6]} 10... Ne4 {[%clk 0:02:18.5]} 11. Nxe4
{[%clk 0:02:50.2]} 11... Bxe4 {[%clk 0:02:18.5]} 12. Rc1 {[%clk 0:02:50.7]}
12... Nd7 {[%clk 0:02:12.9]} 13. Re1 {[%clk 0:02:44.1]} 13... Rac8 {[%clk
0:02:09.4]} 14. Bh3 {[%clk 0:02:41.2]} 14... Bxf3 {[%clk 0:02:05.9]} 15. exf3
{[%clk 0:02:40.8]} 15... e6 {[%clk 0:02:03.8]} 16. f4 {[%clk 0:02:31.4]} 16...
cxd4 {[%clk 0:01:52]} 17. Bxd4 {[%clk 0:02:28.2]} 17... Bxd4 {[%clk 0:01:47.5]}
18. Qxd4 {[%clk 0:02:29.1]} 18... Rfd8 {[%clk 0:01:27.9]} 19. Rxe6 {[%clk
0:02:23.4]} 19... fxe6 {[%clk 0:01:13.4]} 20. Bxe6+ {[%clk 0:02:24.3]} 20... Kf8
{[%clk 0:01:08.9]} 21. Re1 {[%clk 0:02:23.7]} 21... Ne5 {[%clk 0:01:08.3]} 22.
fxe5 {[%clk 0:02:23.4]} 22... dxe5 {[%clk 0:01:08.7]} 23. Qh4 {[%clk 0:02:23]}
23... Kg7 {[%clk 0:01:04.5]} 24. Bxc8 {[%clk 0:02:21.7]} 24... Rxc8 {[%clk
0:01:04.4]} 25. Qe4 {[%clk 0:02:20.8]} 25... Re8 {[%clk 0:01:04.2]} 26. Qd5
{[%clk 0:02:14.1]} 26... Re7 {[%clk 0:00:55.4]} 27. Kg2 {[%clk 0:02:13.3]} 27...
b6 {[%clk 0:00:53.1]} 28. h4 {[%clk 0:02:12.1]} 28... Qb8 {[%clk 0:00:47.3]} 29.
b4 {[%clk 0:02:08.6]} 29... Qc7 {[%clk 0:00:46.5]} 30. c5 {[%clk 0:02:07.6]}
30... bxc5 {[%clk 0:00:46.7]} 31. bxc5 {[%clk 0:02:08.5]} 31... Kf6 {[%clk
0:00:38.8]} 32. c6 {[%clk 0:02:00.2]} 32... Re6 {[%clk 0:00:39.1]} 33. Rc1
{[%clk 0:01:59.7]} 33... Ke7 {[%clk 0:00:39.3]} 34. Qe4 {[%clk 0:01:56.6]} 34...
Kf6 {[%clk 0:00:37]} 35. Rc3 {[%clk 0:01:54.6]} 35... Kg7 {[%clk 0:00:36.7]} 36.
a4 {[%clk 0:01:45.9]} 36... a5 {[%clk 0:00:34.8]} 37. Rc2 {[%clk 0:01:34]} 37...
Kf6 {[%clk 0:00:34.2]} 38. Qd5 {[%clk 0:01:31.3]} 38... e4 {[%clk 0:00:26.5]}
39. Qd4+ {[%clk 0:01:24.5]} 39... Kf7 {[%clk 0:00:23.8]} 40. Qh8 {[%clk
0:01:22.4]} 1-0

[Event "*** SCC Grand Prix: Titled Tuesday Blitz"]
[Site "Chess.com"]
[Date "2020.10.06"]
[Round "7"]
[White "FairChess_on_YouTube"]
[Black "Bulldog167"]
[Result "1-0"]
[WhiteElo "2970"]
[BlackElo "2779"]
[TimeControl "180+1"]
[EndTime "11:18:28 PDT"]
[Termination "FairChess_on_YouTube won by resignation"]

1. e4 {[%clk 0:03:00.9]} 1... e6 {[%clk 0:02:59.4]} 2. d4 {[%clk 0:03:00.3]}
2... d5 {[%clk 0:03:00]} 3. e5 {[%clk 0:02:56.3]} 3... c5 {[%clk 0:03:00]} 4. c3
{[%clk 0:02:51.6]} 4... Nc6 {[%clk 0:03:00.3]} 5. Nf3 {[%clk 0:02:51.7]} 5...
Bd7 {[%clk 0:03:00.6]} 6. Bd3 {[%clk 0:02:48.8]} 6... Rc8 {[%clk 0:02:59]} 7. a3
{[%clk 0:02:45.4]} 7... cxd4 {[%clk 0:02:56.4]} 8. cxd4 {[%clk 0:02:44.2]} 8...
Qb6 {[%clk 0:02:57]} 9. O-O {[%clk 0:02:39.6]} 9... Nge7 {[%clk 0:02:31.5]} 10.
Nc3 {[%clk 0:02:26.6]} 10... Na5 {[%clk 0:02:30.3]} 11. Bc2 {[%clk 0:02:00.7]}
11... Nc4 {[%clk 0:02:19.9]} 12. Na4 {[%clk 0:01:39.5]} 12... Qd8 {[%clk
0:02:10]} 13. Nc5 {[%clk 0:01:36.7]} 13... Nc6 {[%clk 0:02:00]} 14. Nxd7 {[%clk
0:01:16.7]} 14... Qxd7 {[%clk 0:02:00.9]} 15. b3 {[%clk 0:01:16.2]} 15... Nb6
{[%clk 0:01:59.9]} 16. Be3 {[%clk 0:01:10.3]} 16... Be7 {[%clk 0:01:59.4]} 17.
Bd3 {[%clk 0:01:06.4]} 17... a6 {[%clk 0:01:55.7]} 18. h4 {[%clk 0:01:00.8]}
18... Na7 {[%clk 0:01:46.8]} 19. Ng5 {[%clk 0:00:58.2]} 19... Bxg5 {[%clk
0:01:20.1]} 20. Bxg5 {[%clk 0:00:53.2]} 20... Nb5 {[%clk 0:01:13.7]} 21. Be3
{[%clk 0:00:48.6]} 21... Qe7 {[%clk 0:01:10.1]} 22. Qg4 {[%clk 0:00:46]} 22...
g6 {[%clk 0:01:10.2]} 23. Bg5 {[%clk 0:00:40.9]} 23... h5 {[%clk 0:01:06.8]} 24.
Bxb5+ {[%clk 0:00:34.8]} 24... axb5 {[%clk 0:01:05.9]} 25. Qf4 {[%clk
0:00:33.9]} 25... Qd7 {[%clk 0:01:04.9]} 26. Qf6 {[%clk 0:00:30.6]} 26... Rg8
{[%clk 0:01:04.6]} 27. Rfc1 {[%clk 0:00:29.7]} 27... Rc6 {[%clk 0:01:01.8]} 28.
Rxc6 {[%clk 0:00:27.7]} 28... bxc6 {[%clk 0:01:01.5]} 29. a4 {[%clk 0:00:27]}
29... Nc8 {[%clk 0:00:49.4]} 30. axb5 {[%clk 0:00:26.1]} 30... Qe7 {[%clk
0:00:42.5]} 31. Qxe7+ {[%clk 0:00:19.4]} 31... Nxe7 {[%clk 0:00:43.4]} 32. Ra8+
{[%clk 0:00:19.4]} 1-0

[Event "*** SCC Grand Prix: Titled Tuesday Blitz"]
[Site "Chess.com"]
[Date "2020.10.06"]
[Round "7"]
[White "ZverevLev"]
[Black "ehrenfeld"]
[Result "0-1"]
[WhiteElo "2341"]
[BlackElo "2515"]
[TimeControl "180+1"]
[EndTime "11:18:28 PDT"]
[Termination "ehrenfeld won by checkmate"]

1. e4 {[%clk 0:03:00.9]} 1... e5 {[%clk 0:02:59.3]} 2. Nf3 {[%clk 0:03:00.2]}
2... Nc6 {[%clk 0:02:59.1]} 3. Bc4 {[%clk 0:02:59.2]} 3... Nf6 {[%clk
0:02:58.4]} 4. d3 {[%clk 0:02:58.6]} 4... h6 {[%clk 0:02:58.3]} 5. c3 {[%clk
0:02:58.5]} 5... d6 {[%clk 0:02:57.5]} 6. Bb3 {[%clk 0:02:57.9]} 6... g5 {[%clk
0:02:56]} 7. O-O {[%clk 0:02:57.5]} 7... Bg7 {[%clk 0:02:56]} 8. Nbd2 {[%clk
0:02:55.9]} 8... O-O {[%clk 0:02:55.2]} 9. h3 {[%clk 0:02:44.5]} 9... Ne7 {[%clk
0:02:49.7]} 10. Re1 {[%clk 0:02:43.2]} 10... Ng6 {[%clk 0:02:49.3]} 11. Nf1
{[%clk 0:02:41.3]} 11... Be6 {[%clk 0:02:36.5]} 12. Ng3 {[%clk 0:02:39.5]} 12...
Qd7 {[%clk 0:02:34]} 13. Bxe6 {[%clk 0:02:36.1]} 13... fxe6 {[%clk 0:02:33.6]}
14. d4 {[%clk 0:02:29.5]} 14... exd4 {[%clk 0:02:30.7]} 15. cxd4 {[%clk
0:02:30.3]} 15... g4 {[%clk 0:02:12.9]} 16. hxg4 {[%clk 0:02:28.3]} 16... Nxg4
{[%clk 0:02:12.4]} 17. Nh5 {[%clk 0:02:18.4]} 17... Kh8 {[%clk 0:01:54.3]} 18.
Nh4 {[%clk 0:01:47.9]} 18... Qf7 {[%clk 0:01:39.7]} 19. Nxg6+ {[%clk 0:01:42.1]}
19... Qxg6 {[%clk 0:01:38.6]} 20. Nf4 {[%clk 0:01:41.8]} 20... Qg5 {[%clk
0:01:32.7]} 21. g3 {[%clk 0:01:07.2]} 21... Nxf2 {[%clk 0:01:24.1]} 22. Kxf2
{[%clk 0:01:03.9]} 22... e5 {[%clk 0:01:23.4]} 23. Rh1 {[%clk 0:00:54.2]} 23...
exf4 {[%clk 0:01:22.1]} 24. Bxf4 {[%clk 0:00:55.1]} 24... Rxf4+ {[%clk
0:01:05.5]} 25. gxf4 {[%clk 0:00:54]} 25... Qxf4+ {[%clk 0:01:04.4]} 26. Qf3
{[%clk 0:00:53.5]} 26... Qd2+ {[%clk 0:00:53.9]} 27. Kg3 {[%clk 0:00:49]} 27...
Rf8 {[%clk 0:00:48.5]} 28. Qb3 {[%clk 0:00:28]} 28... Qf2+ {[%clk 0:00:46.6]}
29. Kg4 {[%clk 0:00:25.7]} 29... Rf4+ {[%clk 0:00:41.9]} 30. Kh5 {[%clk
0:00:25.1]} 30... Qe2+ {[%clk 0:00:39.5]} 31. Kg6 {[%clk 0:00:25]} 31... Qg4#
{[%clk 0:00:39.3]} 0-1